[Event "Olomouc Chess Summer Open 2022"]
[Site "Olomouc"]
[Date "2022.08.18"]
[Round "7.17"]
[White "Jordanov, Mihail"]
[Black "Bokhnak, Timofey"]
[Result "1-0"]
[ECO "C02"]
[WhiteElo "2158"]
[BlackElo "2098"]
[Annotator "NA RC"]
[PlyCount "103"]
[EventDate "2022.08.14"]
[EventCountry "CZE"]
[SourceTitle "playchess.com"]
[Source "ChessBase"]
[SourceQuality "1"]
[TimeControl "40/5400+30:1800+30"]

1. e4 {[%emt 0:00:05]} e6 {[%emt 0:00:11]} 2. d4 {[%emt 0:00:05]} d5 {[%emt 0:00:03]} 3. e5 {[%emt 0:00:11]} c5 {[%emt 0:00:09]} 4. c3 {[%emt 0:00:07]} Nc6 {[%emt 0:00:35]} 5. Nf3 {[%emt 0:00:14]} Qb6 {[%emt 0:00:42]} 6. Bd3 {[%emt 0:00:19]} Bd7 {[%emt 0:00:18]} 7. O-O {[%emt 0:00:21]} cxd4 {[%emt 0:03:16]} 8. Re1 {[%emt 0:00:49]} dxc3 {[%emt 0:03:25]} 9. Nxc3 {[%emt 0:00:25]} Nb4 {[%emt 0:08:11]} 10. Be3 {[%emt 0:16:57]} Bc5 {[%emt 0:00:07]} 11. Bxc5 {[%emt 0:10:09]} Qxc5 {[%emt 0:00:05]} 12. Bf1 {[%emt 0:00:10]} Ne7 {[%emt 0:03:31]} 13. Rc1 {[%emt 0:02:24]} Qb6 {[%emt 0:06:30]} 14. a3 {[%emt 0:02:29]} Nbc6 {[%emt 0:04:46]} 15. Bd3 {[%emt 0:03:45]} Ng6 {[%emt 0:05:07]} 16. g3 {[%emt 0:05:20]} O-O {[%emt 0:09:50]} 17. h4 {[%emt 0:10:46]} f6 {[%emt 0:08:46]} 18. Bxg6 {[%emt 0:08:48]} hxg6 {[%emt 0:00:09]} 19. Nxd5 {[%emt 0:00:14]} exd5 {[%emt 0:02:53]} 20. Qxd5+ {[%emt 0:00:06]} Rf7 {[%emt 0:02:54]} 21. e6 {[%emt 0:00:14]} Bxe6 {[%emt 0:00:47]} 22. Qxe6 {[%emt 0:08:17]} Ne5 {[%emt 0:14:58]} 23. Rc8+ {[%emt 0:02:35]} Kh7 {[%emt 0:02:30]} 24. Qxb6 {[%emt 0:02:42]} Nxf3+ {[%emt 0:00:07]} 25. Kf1 {[%emt 0:00:05]} axb6 {[%emt 0:03:33]} 26. Rxa8 {[%emt 0:00:07]} Nxe1 {[%emt 0:00:06]} 27. Kxe1 {[%emt 0:00:05]} Rc7 {[%emt 0:03:06]} 28. Ra4 {[%emt 0:01:32]} Kh6 {[%emt 0:03:12]} 29. Rb4 {[%emt 0:03:19]} Rc6 {[%emt 0:00:15]} 30. Rb5 {[%emt 0:00:41]} Rd6 {[%emt 0:00:30]} 31. Ke2 {[%emt 0:00:31]} f5 {[%emt 0:00:58]} 32. Re5 {[%emt 0:01:56]} Rc6 {[%emt 0:00:32]} 33. Kd3 {[%emt 0:01:04]} Rd6+ {[%emt 0:00:52]} 34. Ke3 {[%emt 0:00:59]} Rc6 {[%emt 0:00:12]} 35. Re8 {[%emt 0:01:57]} g5 {[%emt 0:01:48]} 36. hxg5+ {[%emt 0:00:33]} Kxg5 {[%emt 0:00:06]} 37. Re7 {[%emt 0:00:17]} g6 {[%emt 0:00:10]} 38. Kf3 {[%emt 0:03:12]} Rc2 {[%emt 0:01:28]} 39. b4 {[%emt 0:00:20]} Rc3+ {[%emt 0:01:42]} 40. Kg2 {[%emt 0:00:15]} Rxa3 {[%emt 0:00:54]} 41. Rxb7 {[%emt 0:30:07]} Kg4 {[%emt 0:32:36]} 42. Rxb6 {[%emt 0:08:40]} g5 {[%emt 0:00:15]} 43. Rb8 {[%emt 0:01:34]} f4 {[%emt 0:03:09]} 44. gxf4 {[%emt 0:01:16]} gxf4 {[%emt 0:01:32]} 45. Rg8+ {[%emt 0:00:00]} Kf5 {[%emt 0:00:00]} 46. b5 {[%emt 0:00:00]} Rb3 {[%emt 0:00:00]} 47. Rb8 {[%emt 0:00:00]} Ke6 {[%emt 0:00:00]} 48. b6 {[%emt 0:00:00]} Kd7 {[%emt 0:00:00]} 49. b7 {[%emt 0:00:00]} Kc7 {[%emt 0:00:00]} 50. Rf8 {[%emt 0:00:00]} Kxb7 {[%emt 0:00:00]} 51. Rxf4 {[%emt 0:00:00]} Kc7 {[%emt 0:00:00]} 52. Rd4 {[%emt 0:00:00]} 1-0

[Event "Olomouc Chess Summer Open 2022"]
[Site "Olomouc"]
[Date "2022.08.18"]
[Round "7.18"]
[White "Al-Ali, Hussein Ali Hussein"]
[Black "Schletter, Felix"]
[Result "1/2-1/2"]
[ECO "A05"]
[WhiteElo "2262"]
[BlackElo "1975"]
[Annotator "NA RC"]
[PlyCount "122"]
[EventDate "2022.08.14"]
[EventCountry "CZE"]
[SourceTitle "playchess.com"]
[Source "ChessBase"]
[SourceQuality "1"]
[TimeControl "40/5400+30:1800+30"]

1. Nf3 {[%emt 0:00:05]} Nf6 {[%emt 0:00:07]} 2. e3 {[%emt 0:00:04]} c5 {[%emt 0:00:37]} 3. b3 {[%emt 0:00:19]} g6 {[%emt 0:00:43]} 4. Bb2 {[%emt 0:00:11]} Bg7 {[%emt 0:00:04]} 5. c4 {[%emt 0:00:16]} O-O {[%emt 0:00:17]} 6. Be2 {[%emt 0:01:29]} Nc6 {[%emt 0:02:46]} 7. O-O {[%emt 0:00:07]} d5 {[%emt 0:03:56]} 8. cxd5 {[%emt 0:00:14]} Nxd5 {[%emt 0:00:11]} 9. Bxg7 {[%emt 0:00:09]} Kxg7 {[%emt 0:00:04]} 10. Qc1 {[%emt 0:04:10]} Qd6 {[%emt 0:04:49]} 11. Nc3 {[%emt 0:00:44]} Nxc3 {[%emt 0:06:19]} 12. Qxc3+ {[%emt 0:00:13]} e5 {[%emt 0:01:43]} 13. Bb5 {[%emt 0:00:54]} f6 {[%emt 0:00:51]} 14. Bxc6 {[%emt 0:00:20]} Qxc6 {[%emt 0:00:32]} 15. Rfc1 {[%emt 0:00:09]} Bg4 {[%emt 0:01:11]} 16. Ne1 {[%emt 0:02:06]} Rac8 {[%emt 0:01:34]} 17. h3 {[%emt 0:05:49]} Be6 {[%emt 0:02:20]} 18. d3 {[%emt 0:01:37]} Rfd8 {[%emt 0:00:28]} 19. Rc2 {[%emt 0:01:39]} Qa6 {[%emt 0:02:35]} 20. Rac1 {[%emt 0:00:33]} b6 {[%emt 0:02:25]} 21. Qb2 {[%emt 0:04:53]} Bf5 {[%emt 0:02:48]} 22. e4 {[%emt 0:01:44]} Be6 {[%emt 0:00:14]} 23. b4 {[%emt 0:00:26]} c4 {[%emt 0:08:57]} 24. dxc4 {[%emt 0:00:15]} Rxc4 {[%emt 0:00:12]} 25. Rxc4 {[%emt 0:02:47]} Bxc4 {[%emt 0:00:34]} 26. a3 {[%emt 0:01:03]} b5 {[%emt 0:01:02]} 27. Nf3 {[%emt 0:01:04]} Rd3 {[%emt 0:03:17]} 28. Nd2 {[%emt 0:01:01]} Qxa3 {[%emt 0:01:35]} 29. Nxc4 {[%emt 0:00:31]} bxc4 {[%emt 0:00:04]} 30. Qxa3 {[%emt 0:00:07]} Rxa3 {[%emt 0:00:04]} 31. Rxc4 {[%emt 0:00:06]} Ra1+ {[%emt 0:00:24]} 32. Kh2 {[%emt 0:00:09]} g5 {[%emt 0:00:18]} 33. b5 {[%emt 0:01:22]} Kg6 {[%emt 0:00:33]} 34. g4 {[%emt 0:05:13]} a6 {[%emt 0:00:24]} 35. bxa6 {[%emt 0:00:27]} Rxa6 {[%emt 0:00:06]} 36. Kg3 {[%emt 0:00:49]} Ra3+ {[%emt 0:00:08]} 37. f3 {[%emt 0:00:45]} h5 {[%emt 0:00:31]} 38. gxh5+ {[%emt 0:00:12]} Kxh5 {[%emt 0:00:02]} 39. Rc8 {[%emt 0:00:36]} Ra1 {[%emt 0:00:19]} 40. Rf8 {[%emt 0:00:28]} Kg6 {[%emt 0:00:10]} 41. h4 {[%emt 0:31:39]} gxh4+ {[%emt 0:32:28]} 42. Kxh4 {[%emt 0:00:09]} Rh1+ {[%emt 0:00:06]} 43. Kg3 {[%emt 0:00:16]} Rg1+ {[%emt 0:00:07]} 44. Kf2 {[%emt 0:00:11]} Ra1 {[%emt 0:00:05]} 45. Rb8 {[%emt 0:00:41]} Rc1 {[%emt 0:00:15]} 46. Rb7 {[%emt 0:00:42]} Ra1 {[%emt 0:00:07]} 47. Rb8 {[%emt 0:00:47]} Rc1 {[%emt 0:00:05]} 48. Rg8+ {[%emt 0:00:06]} Kf7 {[%emt 0:00:04]} 49. Rh8 {[%emt 0:00:45]} Kg7 {[%emt 0:00:06]} 50. Rh4 {[%emt 0:00:28]} Kg6 {[%emt 0:00:17]} 51. Rg4+ {[%emt 0:00:19]} Kf7 {[%emt 0:00:07]} 52. Rg2 {[%emt 0:02:11]} Ke6 {[%emt 0:00:42]} 53. Kg3 {[%emt 0:00:05]} f5 {[%emt 0:00:20]} 54. exf5+ {[%emt 0:01:17]} Kxf5 {[%emt 0:00:05]} 55. Rh2 {[%emt 0:00:09]} Rg1+ {[%emt 0:00:15]} 56. Kf2 {[%emt 0:00:13]} Ra1 {[%emt 0:00:20]} 57. Rh8 {[%emt 0:00:10]} Ra4 {[%emt 0:01:08]} 58. Kg3 {[%emt 0:00:44]} Rb4 {[%emt 0:00:53]} 59. Rf8+ {[%emt 0:00:29]} Ke6 {[%emt 0:00:07]} 60. Re8+ {[%emt 0:01:16]} Kf5 {[%emt 0:00:08]} 61. Ra8 {[%emt 0:00:11]} Rc4 {[%emt 0:00:51]} 1/2-1/2

[Event "Olomouc Chess Summer Open 2022"]
[Site "Olomouc"]
[Date "2022.08.18"]
[Round "7.19"]
[White "Soban, Jaroslav"]
[Black "Marek, Matyas"]
[Result "1/2-1/2"]
[ECO "A36"]
[WhiteElo "2101"]
[BlackElo "2354"]
[Annotator "TA"]
[PlyCount "44"]
[EventDate "2022.08.14"]
[EventCountry "CZE"]
[SourceTitle "playchess.com"]
[Source "ChessBase"]
[SourceQuality "1"]
[TimeControl "40/5400+30:1800+30"]

{[%evp 11,44,0,-11,-11,10,0,0,0,0,0,10,0,41,33,42,35,37,25,33,29,48,32,36,40,65,27,39,22,49,16,60,0,49,0,50]} 1. c4 {[%emt 0:00:06]} c5 {[%emt 0:00:04]} 2. g3 {[%emt 0:00:17]} Nc6 {[%emt 0:00:05]} 3. Bg2 {[%emt 0:00:06]} g6 {[%emt 0:00:04]} 4. Nc3 {[%emt 0:00:09]} Bg7 {[%emt 0:00:05]} 5. e4 {[%emt 0:00:34]} d6 {[%emt 0:00:21]} 6. d3 {[%emt 0:00:21]} a6 {[%emt 0:00:18]} 7. Nge2 {[%emt 0:00:32] A36: Symmetrical English vs ...g6: 4 Bg2 Bg7.} Bg4 {[%emt 0:00:47]} 8. h3 {[%emt 0:01:04]} Bxe2 {[%emt 0:00:08]} 9. Nxe2 {[%emt 0:00:09] [#]} e6 $146 {[%emt 0:00:43]} ({Predecessor:} 9... Rb8 10. O-O e6 11. f4 Nge7 12. Rb1 O-O 13. b3 d5 14. Bb2 dxe4 15. dxe4 b5 16. Bxg7 Kxg7 17. cxb5 axb5 {1-0 (26) Gulbas,C (2170)-Ooms,A (2160) Vielsalm 1997}) 10. O-O {[%emt 0:01:09]} Nge7 {[%emt 0:00:21]} 11. Be3 {[%emt 0:05:54]} Qb6 {[%emt 0:05:32]} 12. Rb1 {[%emt 0:02:08][%cal Ob2b4]} a5 {[%emt 0:00:39]} 13. b3 {[%emt 0:03:27]} O-O {[%emt 0:02:10]} 14. Qd2 {[%emt 0:11:44]} Rfe8 {[%emt 0:03:30]} 15. a3 {[%emt 0:10:50]} Rad8 {[%emt 0:16:51]} 16. Rfc1 {[%emt 0:06:39]} Rd7 {[%emt 0:02:42]} 17. f4 {[%emt 0:05:41]} Ra8 {[%emt 0:14:48]} 18. Kh2 {[%emt 0:05:04]} Re8 {[%emt 0:05:24]} 19. Bg1 {[%emt 0:03:04]} h6 {[%emt 0:01:55]} 20. Be3 {[%emt 0:01:35]} Kh7 {[%emt 0:00:17]} 21. Bg1 {[%emt 0:00:36]} Kg8 {[%emt 0:01:42]} 22. Be3 {[%emt 0:00:14]} Kh7 {[%emt 0:00:37] Weighted Error Value: White=0.15 (very precise) /Black=0.13 (very precise)} 1/2-1/2

[Event "Olomouc Chess Summer Open 2022"]
[Site "Olomouc"]
[Date "2022.08.18"]
[Round "7.20"]
[White "Lehmann, Christoph"]
[Black "Cagasik, Tomas"]
[Result "1/2-1/2"]
[ECO "A45"]
[WhiteElo "1916"]
[BlackElo "2143"]
[Annotator "TA"]
[PlyCount "256"]
[EventDate "2022.08.14"]
[EventCountry "CZE"]
[SourceTitle "playchess.com"]
[Source "ChessBase"]
[SourceQuality "1"]
[TimeControl "40/5400+30:1800+30"]

{[%evp 9,256,31,29,27,28,27,25,17,25,25,22,18,57,50,55,58,64,50,56,57,64,47,48,45,49,37,45,35,86,88,82,82,78,74,99,100,108,80,138,82,98,98,135,138,145,94,104,89,256,157,163,157,156,154,379,157,174,134,173,122,189,181,210,110,90,0,197,0,91,98,181,125,130,129,134,0,122,125,173,128,171,145,137,95,95,29,95,102,89,64,64,65,66,66,170,160,153,0,18,8,15,8,169,33,16,0,320,-1508,0,0,0,-245,-237,-250,0,-21,-19,-19,-22,-21,-21,-21,-21,-21,-21,-20,-8,-8,-8,-8,-8,-12,0,0,0,0,0,-8,-8,-8,-8,-12,-12,-12,-14,-14,-8,-8,-8,-8,-8,-8,-8,-8,-8,-31,-8,-8,-8,-8,-8,-31,-8,-31,0,0,0,0,0,0,0,0,0,0,0,0,0,0,0,0,0,0,0,0,0,0,0,0,0,0,0,0,0,0,0,0,0,0,0,0,0,0,0,0,0,0,0,0,0,0,0,0,0,0,0,0,0,0,0,0,0,0,0,0,0,-8,-8,-8,-8,-8,0,0,0,0,0,0,0,-8,0,0,0,0,0,0,0,0,0,0,0]} 1. d4 {[%emt 0:00:03]} Nf6 {[%emt 0:00:12]} 2. Bg5 {[%emt 0:00:43]} e6 {[%emt 0:00:56]} 3. e4 {[%emt 0:00:08]} h6 {[%emt 0:00:45]} 4. Bxf6 {[%emt 0:00:13]} Qxf6 {[%emt 0:00:15]} 5. c3 {[%emt 0:00:19]} e5 {[%emt 0:02:44]} 6. Nf3 {[%emt 0:02:41] A45: Trompowsky Attack.} Nc6 {[%emt 0:00:42]} 7. Bb5 {[%emt 0:05:08]} Bd6 {[%emt 0:19:17]} 8. O-O {[%emt 0:09:19] [#] White has an edge.} O-O $146 {[%emt 0:00:44]} ({Predecessor:} 8... g5 9. Bxc6 dxc6 10. dxe5 Bxe5 11. Nxe5 Qxe5 12. Qd4 Qxd4 13. cxd4 Be6 14. Nc3 O-O-O {0-1 (55) Collet,D (1760)-Wantiez,F (2265) Charleroi 2006}) 9. Re1 {[%emt 0:07:28]} a6 {[%emt 0:08:30]} 10. Bf1 {[%emt 0:08:54]} exd4 {[%emt 0:06:02]} 11. cxd4 {[%emt 0:01:36]} Bb4 {[%emt 0:00:17]} 12. Nc3 {[%emt 0:02:23]} Bxc3 {[%emt 0:05:20]} 13. bxc3 {[%emt 0:00:32]} d6 {[%emt 0:00:20]} 14. Rb1 {[%emt 0:06:53]} b6 {[%emt 0:06:24]} 15. g3 {[%emt 0:06:30]} Bg4 {[%emt 0:08:48]} 16. Bg2 {[%emt 0:01:41]} Rab8 {[%emt 0:00:21]} 17. h3 {[%emt 0:04:56]} Bxf3 {[%emt 0:00:32]} 18. Bxf3 {[%emt 0:01:54]} a5 {[%emt 0:03:27]} (18... b5 $14) 19. Kg2 {[%emt 0:03:03]} Nd8 {[%emt 0:07:14]} 20. Qa4 {[%emt 0:05:24]} Ne6 {[%emt 0:06:56]} 21. Qc6 {[%emt 0:02:13]} Qd8 {[%emt 0:12:08]} 22. e5 {[%emt 0:06:19]} Qe8 {[%emt 0:01:49]} 23. Qc4 {[%emt 0:03:05]} Qc8 {[%emt 0:01:57]} (23... b5 $142 24. Qd5 Qd7) 24. Kh2 {[%emt 0:07:23]} (24. h4 $142) 24... Ng5 {[%emt 0:01:03]} 25. Bg2 {[%emt 0:01:13] Active counter play!} Re8 {[%emt 0:02:00]} 26. h4 {[%emt 0:03:37]} Ne6 {[%emt 0:00:03]} 27. Bh3 {[%emt 0:00:00]} (27. Bd5 $142) 27... Qb7 $16 {[%emt 0:00:49]} 28. exd6 {[%emt 0:03:04]} b5 $2 {[%emt 0:00:00]} (28... cxd6 $16 29. Bxe6 fxe6) 29. dxc7 {[%emt 0:03:34]} Nxc7 {[%emt 0:02:44]} 30. Qc5 {[%emt 0:01:38]} Rxe1 {[%emt 0:00:56]} 31. Rxe1 {[%emt 0:00:07]} Qb6 $2 {[%emt 0:00:35]} (31... Ne6 $16 32. Bxe6 fxe6) 32. Qf5 {[%emt 0:01:06]} (32. Re7 $18) 32... Qd6 {[%emt 0:00:31]} 33. Bg2 {[%emt 0:01:11] Prevents Nd5.} g6 {[%emt 0:01:15]} 34. Qd3 {[%emt 0:00:59]} ({Better is} 34. Qf3 $18) 34... h5 {[%emt 0:00:31]} (34... Qf6 $16) 35. Re5 $18 {[%emt 0:00:30]} Rd8 {[%emt 0:00:24] ...Qxe5 is the strong threat.} 36. Re4 {[%emt 0:01:38]} (36. Qe3 $18) 36... Nd5 $16 {[%emt 0:00:12]} 37. Re5 {[%emt 0:00:21]} (37. Re2 $16) 37... Nc7 $1 $18 {[%emt 0:00:37]} 38. Re4 {[%emt 0:01:08]} (38. Qe3 $18 {is more deadly.}) 38... Nd5 $16 {[%emt 0:00:09]} 39. Re2 {[%emt 0:00:19]} Nc7 {[%emt 0:00:31]} (39... Rc8 $16 {keeps fighting.}) 40. Rd2 {[%emt 0:00:36]} (40. f4 $18) 40... Rb8 {[%emt 0:01:48]} 41. Rc2 {[%emt 0:10:25]} Rd8 {[%emt 0:03:21]} 42. Rd2 {[%emt 0:05:53]} Rb8 $1 {[%emt 0:00:42]} 43. d5 {[%emt 0:00:56]} Na6 {[%emt 0:01:27]} (43... Ne8 $16 44. Bf1 Nf6) 44. Qd4 {[%emt 0:01:40]} Nc5 {[%emt 0:05:24]} 45. Rb2 {[%emt 0:01:02]} Nd7 {[%emt 0:07:03]} 46. Bf1 {[%emt 0:02:24][%cal Bg2f1,Bf1d3,Bd3c2,Bc2d1][%mdl 32]} b4 {[%emt 0:00:41]} 47. c4 {[%emt 0:02:11]} (47. cxb4 $16 axb4 48. Be2) 47... Nc5 {[%emt 0:01:27]} (47... a4 $11) 48. Bd3 {[%emt 0:01:21]} a4 {[%emt 0:00:44]} 49. Bc2 {[%emt 0:00:41]} b3 {[%emt 0:09:05]} 50. axb3 {[%emt 0:00:27]} axb3 {[%emt 0:00:13]} 51. Bd1 {[%emt 0:00:44]} Re8 {[%emt 0:00:11]} (51... Rb6 $14) 52. Bxb3 $18 {[%emt 0:02:13]} Re4 {[%emt 0:00:07]} 53. Qd1 {[%emt 0:02:02]} (53. Qc3 $16) 53... Rxh4+ {[%emt 0:00:27]} 54. Kg2 {[%emt 0:00:00]} Re4 {[%emt 0:00:00]} 55. Ra2 {[%emt 0:00:44]} Qe5 $2 {[%emt 0:02:48]} (55... Qf6 $1 $11 {and Black stays safe.}) 56. Ra8+ {[%emt 0:00:57]} (56. Qf3 $1 $18) 56... Kg7 $14 {[%emt 0:00:37]} 57. Ra7 {[%emt 0:00:53]} Re2 $2 {[%emt 0:01:12][%mdl 8192]} (57... h4 $11 58. Qf3 hxg3 59. Rxf7+ (59. Qxf7+ Kh6 $11) 59... Kh6) 58. Ra2 $4 {[%emt 0:01:13][%mdl 8192]} (58. Bc2 $18) 58... Re1 $2 {[%emt 0:01:03]} ({Black should play} 58... Qe4+ $19 59. Kh2 Re1 60. Qxe1 Qxe1) 59. Qf3 $11 {[%emt 0:00:24]} Nxb3 {[%emt 0:02:15]} 60. Ra7 $2 {[%emt 0:00:33] [#]} (60. Qxb3 $11 Rc1 61. Qd3) 60... Qe8 $1 $19 {[%emt 0:00:42]} 61. Rxf7+ {[%emt 0:01:54]} (61. Qc3+ Kg8) 61... Kg8 $2 {[%emt 0:01:04]} (61... Qxf7 $19 62. Qc3+ {[#]} Nd4 $1 {[%mdl 512]} 63. Qxe1 Qf3+ 64. Kh2 Qxd5 $3 {[%mdl 512]} 65. cxd5 Nf3+ 66. Kh3 Nxe1) 62. Rf6 {[%emt 0:01:43]} Nd4 {[%emt 0:00:31]} 63. Qd3 {[%emt 0:00:36]} Nf5 {[%emt 0:00:28] aiming for ...Kg7.} 64. d6 {[%emt 0:00:55][%cal Bd5d6,Bd6d7][%mdl 32]} Qa8+ {[%emt 0:00:32]} 65. Qd5+ {[%emt 0:00:46]} Qxd5+ {[%emt 0:00:09]} 66. cxd5 $11 {[%emt 0:00:04][%mdl 4096] Endgame White wants to mate with d7. KRN-KR} Re5 {[%emt 0:00:53] Strongly threatening ...Kg7.} 67. Rxg6+ {[%emt 0:00:35]} Kf7 {[%emt 0:00:00]} 68. d7 {[%emt 0:00:42]} Rxd5 {[%emt 0:00:40]} 69. Rg5 {[%emt 0:00:15][%cal Og5f5] Black must now prevent Rxf5+!} Ke7 {[%emt 0:00:48][%cal Of5e3] And now ...Ne3+! would win.} 70. f4 {[%emt 0:00:41]} Rd2+ {[%emt 0:00:34]} 71. Kf3 {[%emt 0:00:28]} Nd6 {[%emt 0:00:30]} 72. Rxh5 {[%emt 0:00:41]} Kxd7 {[%emt 0:00:13]} 73. Ra5 {[%emt 0:00:29]} Rd3+ {[%emt 0:00:13]} 74. Kg2 {[%emt 0:00:28]} Ne4 {[%emt 0:00:17]} 75. Ra7+ {[%emt 0:00:21]} Ke6 {[%emt 0:00:24]} 76. Rg7 {[%emt 0:00:06]} Kf6 {[%emt 0:00:41]} 77. Rg8 {[%emt 0:00:18]} Kf7 {[%emt 0:00:19]} 78. Rg4 {[%emt 0:00:21]} Ra3 {[%emt 0:00:18]} 79. f5 {[%emt 0:00:35]} Nd6 {[%emt 0:01:15]} 80. Rf4 {[%emt 0:00:19]} Kf6 {[%emt 0:00:10]} 81. g4 {[%emt 0:00:40]} Kg5 {[%emt 0:01:01]} 82. Rb4 {[%emt 0:00:36]} Rd3 {[%emt 0:00:26]} 83. Kf2 {[%emt 0:00:19]} Nf7 {[%emt 0:00:27]} 84. Ke2 {[%emt 0:00:36]} Rd7 {[%emt 0:00:21]} 85. Ke3 {[%emt 0:00:45]} Ne5 {[%emt 0:00:09]} 86. f6 {[%emt 0:00:32]} (86. Ke4 $5 {[%cal Re4e5]} Nxg4 87. Rb6 $15) 86... Nxg4+ {[%emt 0:00:42]} 87. Kf3 {[%emt 0:00:09] The position is equal.} Nxf6 {[%emt 0:00:30]} 88. Rb5+ {[%emt 0:00:04]} Kg6 {[%emt 0:00:25]} 89. Ra5 {[%emt 0:00:25]} Rd4 {[%emt 0:00:36]} 90. Ke3 {[%emt 0:00:05]} Rb4 {[%emt 0:00:15]} 91. Kd3 {[%emt 0:00:15]} Kf7 {[%emt 0:00:33]} 92. Kc3 {[%emt 0:00:10]} Rh4 {[%emt 0:00:11]} 93. Kd3 {[%emt 0:00:06]} Ke6 {[%emt 0:00:19]} 94. Ra6+ {[%emt 0:01:07]} Ke5 {[%emt 0:00:19]} 95. Ra5+ {[%emt 0:00:26]} Nd5 {[%emt 0:00:16]} 96. Ra8 {[%emt 0:00:05]} Rh3+ {[%emt 0:00:23]} 97. Ke2 {[%emt 0:00:25]} Nc3+ {[%emt 0:00:48]} 98. Kd2 {[%emt 0:00:09]} Kd4 {[%emt 0:01:06]} 99. Rd8+ {[%emt 0:00:08]} Nd5 {[%emt 0:00:10]} 100. Ke2 {[%emt 0:00:14]} Rh7 {[%emt 0:00:39]} 101. Kf3 {[%emt 0:00:14]} Rf7+ {[%emt 0:00:37]} 102. Ke2 {[%emt 0:00:15]} Re7+ {[%emt 0:00:31]} 103. Kd2 {[%emt 0:00:26]} Ke4 {[%emt 0:00:30]} 104. Rh8 {[%emt 0:01:36]} Rc7 {[%emt 0:00:43]} 105. Re8+ {[%emt 0:00:22]} Kd4 {[%emt 0:00:19]} 106. Rd8 {[%emt 0:00:08]} Rf7 {[%emt 0:00:46]} 107. Ke2 {[%emt 0:00:14]} Re7+ {[%emt 0:00:36]} 108. Kd2 {[%emt 0:00:12]} Ke4 {[%emt 0:00:19]} 109. Rh8 {[%emt 0:00:24]} Nf4 {[%emt 0:00:19]} 110. Kc3 {[%emt 0:00:25]} Rc7+ {[%emt 0:00:20]} 111. Kb4 {[%emt 0:00:17]} Kd4 {[%emt 0:00:40]} 112. Rd8+ {[%emt 0:00:07]} Nd5+ {[%emt 0:00:15]} 113. Kb3 {[%emt 0:00:43]} Rc5 {[%emt 0:00:18]} 114. Rh8 {[%emt 0:00:27]} Rb5+ {[%emt 0:00:16]} 115. Kc2 {[%emt 0:00:12]} Ne3+ {[%emt 0:00:14]} 116. Kc1 {[%emt 0:00:46]} Kc3 {[%emt 0:01:22]} 117. Rc8+ {[%emt 0:00:36]} Nc4 {[%emt 0:01:02]} 118. Rc7 {[%emt 0:00:28]} Rh5 {[%emt 0:00:32][%cal Rh5h1]} 119. Kd1 {[%emt 0:00:12]} Rh2 {[%emt 0:00:24]} 120. Ke1 {[%emt 0:00:15]} Kd4 {[%emt 0:00:20]} 121. Rd7+ {[%emt 0:00:09]} Ke4 {[%emt 0:00:20]} 122. Re7+ {[%emt 0:00:09]} Ne5 {[%emt 0:00:16]} 123. Kd1 {[%emt 0:00:26]} Kd4 {[%emt 0:00:22]} 124. Re8 {[%emt 0:00:19]} Nf3 {[%emt 0:00:30]} 125. Rd8+ {[%emt 0:00:12]} Kc3 {[%emt 0:00:13]} 126. Rc8+ {[%emt 0:00:08]} Kd3 {[%emt 0:00:16][%cal Rh2h1]} 127. Rd8+ {[%emt 0:00:08]} Nd4 {[%emt 0:00:13][%cal Rh2h1]} 128. Ke1 {[%emt 0:00:12]} Ke4 {[%emt 0:01:04] What a bad dream for Black.  Weighted Error Value: White=0.52/Black=0.41} 1/2-1/2